Cogmind - Beta 14 @@@ ROGUE MODE // 2024.11.26 @ 14:39:40 Player: MarKhan Result: Destroyed by H-71 Marshal with Heavy Mass Driver Performance ------------- Evolutions (7) 3500 Regions Visited (13) 2600 Robots Destroyed (0) 0 Value Destroyed (0) 0 Prototype IDs (0) 0 Alien Tech Used (0) 0 Bonus (5585) 5585 TOTAL SCORE: 11685 Bonus ------- Pacifist 4085 Entered DSFs 1500 Cogmind --------- Core Integrity 0/1300 Matter 109/300 Energy 99/100 System Corruption 0% Temperature Cool (0) Movement Core (50) Location -3/Research Parts ------- > --- POWER (1) -------- (None) > --- PROPULSION (2) --- (None) > --- UTILITY (2) ------ (None) > --- WEAPON (16) ------ (None) > --- INVENTORY (5) ---- (None) Peak State ------------ None Favorites ----------- Power None Propulsion None Utility None Weapon None Build | -11 -10 -9 -8 -7 -7 -6 -6 -6 -6 -5 -4 -4 -3 ------- Run | Yrd Mat Mat Mat Fac DSF Fac Was Fac DSF Fac Fac DSF Res Slots Evolved 14 | . . 2 2 2 . 2 . . . 2 2 . 2 Power . | . . . . . . . . . . . . . . Propulsion . | . . . . . . . . . . . . . . Utility . | . . . . . . . . . . . . . . Weapon 14 | . . 2 2 2 . 2 . . . 2 2 . 2 Parts Attached . | . . . . . . . . . . . . . . Power . | . . . . . . . . . . . . . . Engine . | . . . . . . . . . . . . . . Core . | . . . . . . . . . . . . . . Reactor . | . . . . . . . . . . . . . . Propulsion . | . . . . . . . . . . . . . . Treads . | . . . . . . . . . . . . . . Leg . | . . . . . . . . . . . . . . Wheel . | . . . . . . . . . . . . . . Hover . | . . . . . . . . . . . . . . Flight . | . . . . . . . . . . . . . . Utility . | . . . . . . . . . . . . . . Device . | . . . . . . . . . . . . . . Storage . | . . . . . . . . . . . . . . Processor . | . . . . . . . . . . . . . . Hackware . | . . . . . . . . . . . . . . Protection . | . . . . . . . . . . . . . . Artifact . | . . . . . . . . . . . . . . Weapon . | . . . . . . . . . . . . . . Energy Gun . | . . . . . . . . . . . . . . Energy Cannon . | . . . . . . . . . . . . . . Ballistic Gun . | . . . . . . . . . . . . . . Ballistic Cannon . | . . . . . . . . . . . . . . Launcher . | . . . . . . . . . . . . . . Special Weapon . | . . . . . . . . . . . . . . Impact Weapon . | . . . . . . . . . . . . . . Slashing Weapon . | . . . . . . . . . . . . . . Piercing Weapon . | . . . . . . . . . . . . . . Special Melee Weapon . | . . . . . . . . . . . . . . Unidentified Prototypes . | . . . . . . . . . . . . . . Parts Lost . | . . . . . . . . . . . . . . Power . | . . . . . . . . . . . . . . Propulsion . | . . . . . . . . . . . . . . Utility . | . . . . . . . . . . . . . . Weapon . | . . . . . . . . . . . . . . Highest Loss Streak . | . . . . . . . . . . . . . . To Critical Strikes . | . . . . . . . . . . . . . . Average Slot Usage (%) . | . . . . . . . . . . . . . . Peak Build Rating . | . . . . . . . . . . . . . . Average Rating . | . . . . . . . . . . . . . . On Entrance . | . . . . . . . . . . . . . . Naked Turns 920 | . 69 104 75 20 39 61 33 6 44 229 2 29 209 Heaviest Build . | . . . . . . . . . . . . . . Greatest Support 3 | 3 3 3 3 3 3 3 3 3 3 3 3 3 3 Greatest Overweight (x) . | . . . . . . . . . . . . . . Average Overweight (x) . | . . . . . . . . . . . . . . Largest Inventory Capacity 5 | 5 5 5 5 5 5 5 5 5 5 5 5 5 5 Average Capacity 5 | 5 5 5 5 5 5 5 5 5 5 5 5 5 5 Most Carried . | . . . . . . . . . . . . . . Average Carried . | . . . . . . . . . . . . . . Final Capacity 5 | 5 5 5 5 5 5 5 5 5 5 5 5 5 5 Final Carried . | . . . . . . . . . . . . . . Class Distribution -------------------- 100% | Mutant Dominant Class ---------------- Mutant | -10/Materials Mutant | -9/Materials Mutant | -8/Materials Mutant | -7/Factory Mutant | -7/DSF Mutant | -6/Factory Mutant | -6/Waste Mutant | -6/Factory Mutant | -6/DSF Mutant | -5/Factory Mutant | -4/Factory Mutant | -4/DSF Mutant | -3/Research Resources | -11 -10 -9 -8 -7 -7 -6 -6 -6 -6 -5 -4 -4 -3 ----------- Run | Yrd Mat Mat Mat Fac DSF Fac Was Fac DSF Fac Fac DSF Res Matter Collected 4 | . . . . . 1 . . . . 3 . . . Remotely . | . . . . . . . . . . . . . . Salvage Created . | . . . . . . . . . . . . . . Parts . | . . . . . . . . . . . . . . Haulers Intercepted . | . . . . . . . . . . . . . . Recyclers Shooed . | . . . . . . . . . . . . . . Parts Field Recycled . | . . . . . . . . . . . . . . Retrieved Matter . | . . . . . . . . . . . . . . Parts Self-Destructed . | . . . . . . . . . . . . . . Prevented . | . . . . . . . . . . . . . . Kills | -11 -10 -9 -8 -7 -7 -6 -6 -6 -6 -5 -4 -4 -3 ------- Run | Yrd Mat Mat Mat Fac DSF Fac Was Fac DSF Fac Fac DSF Res Combat Hostiles Destroyed . | . . . . . . . . . . . . . . Classes Destroyed . | . . . . . . . . . . . . . . Best Kill Streak . | . . . . . . . . . . . . . . Combat Bots Only . | . . . . . . . . . . . . . . Max Kills in Single Turn . | . . . . . . . . . . . . . . Gunslinging . | . . . . . . . . . . . . . . Exploded . | . . . . . . . . . . . . . . Melee . | . . . . . . . . . . . . . . Uniques/NPCs Destroyed . | . . . . . . . . . . . . . . Combat | -11 -10 -9 -8 -7 -7 -6 -6 -6 -6 -5 -4 -4 -3 -------- Run | Yrd Mat Mat Mat Fac DSF Fac Was Fac DSF Fac Fac DSF Res Hostile Shots Fired 222 | . 5 2 14 . 8 . 1 . 10 52 . 19 111 Missed 102 | . 3 1 7 . 1 . 1 . 3 25 . 7 54 Damage Taken 2712 | . 29 15 118 . 358 . . . 143 505 . 215 1329 Core 2712 | . 29 15 118 . 358 . . . 143 505 . 215 1329 Absorbed by Shields 19 | . . . . . . . . . 19 . . . . Core Remaining (%) 77 | 100 88 96 78 . 48 . . . 83 49 . 81 . Volleys Fired . | . . . . . . . . . . . . . . Largest . | . . . . . . . . . . . . . . Hottest . | . . . . . . . . . . . . . . Shots Fired . | . . . . . . . . . . . . . . Gun . | . . . . . . . . . . . . . . Cannon . | . . . . . . . . . . . . . . Launcher . | . . . . . . . . . . . . . . Special . | . . . . . . . . . . . . . . Kinetic . | . . . . . . . . . . . . . . Thermal . | . . . . . . . . . . . . . . Explosive . | . . . . . . . . . . . . . . Electromagnetic . | . . . . . . . . . . . . . . Robot Hit Streak . | . . . . . . . . . . . . . . Robot Miss Streak . | . . . . . . . . . . . . . . Penetration Max . | . . . . . . . . . . . . . . Secondary Targets . | . . . . . . . . . . . . . . Shots Hit Robots . | . . . . . . . . . . . . . . Core Hits 1 | . . . . . . . . . . . . . 1 Critical Kills . | . . . . . . . . . . . . . . Critical Parts Destroyed . | . . . . . . . . . . . . . . Critical Strikes . | . . . . . . . . . . . . . . Melee Attacks . | . . . . . . . . . . . . . . Impact . | . . . . . . . . . . . . . . Slashing . | . . . . . . . . . . . . . . Piercing . | . . . . . . . . . . . . . . Sneak Attacks . | . . . . . . . . . . . . . . Combat Hostiles . | . . . . . . . . . . . . . . Follow-up Attacks . | . . . . . . . . . . . . . . Damage Inflicted 1 | . . . . . . . . . . . . . 1 Guns . | . . . . . . . . . . . . . . Cannons . | . . . . . . . . . . . . . . Explosions . | . . . . . . . . . . . . . . Melee . | . . . . . . . . . . . . . . Ramming 1 | . . . . . . . . . . . . . 1 Kinetic . | . . . . . . . . . . . . . . Thermal . | . . . . . . . . . . . . . . Explosive . | . . . . . . . . . . . . . . Electromagnetic . | . . . . . . . . . . . . . . Impact . | . . . . . . . . . . . . . . Slashing . | . . . . . . . . . . . . . . Piercing . | . . . . . . . . . . . . . . Highest Corruption . | . . . . . . . . . . . . . . Average Corruption . | . . . . . . . . . . . . . . Corruption Purged . | . . . . . . . . . . . . . . Corruption Blocked . | . . . . . . . . . . . . . . Overload Shots . | . . . . . . . . . . . . . . Overflow Damage . | . . . . . . . . . . . . . . Projectiles . | . . . . . . . . . . . . . . Explosions . | . . . . . . . . . . . . . . Melee . | . . . . . . . . . . . . . . Knockbacks . | . . . . . . . . . . . . . . Impact . | . . . . . . . . . . . . . . Kinetic . | . . . . . . . . . . . . . . Secondary . | . . . . . . . . . . . . . . Self-Inflicted Damage . | . . . . . . . . . . . . . . Shots . | . . . . . . . . . . . . . . Rammed 1 | . . . . . . . . . . . . . 1 Targets Rammed 1 | . . . . . . . . . . . . . 1 Kicked . | . . . . . . . . . . . . . . Crushed . | . . . . . . . . . . . . . . Highest Temperature . | . . . . . . . . . . . . . . Average Temperature . | . . . . . . . . . . . . . . Received Heat Transfer 334 | . 15 9 72 . . . . . . 36 . 66 136 Siege Activations . | . . . . . . . . . . . . . . Robots Corrupted . | . . . . . . . . . . . . . . Combat Hostiles . | . . . . . . . . . . . . . . Parts Fried . | . . . . . . . . . . . . . . Impact Corruptions . | . . . . . . . . . . . . . . Robots Melted . | . . . . . . . . . . . . . . Combat Hostiles . | . . . . . . . . . . . . . . Parts Melted . | . . . . . . . . . . . . . . Heat Transferred . | . . . . . . . . . . . . . . Parts Sabotaged . | . . . . . . . . . . . . . . Parts Stolen . | . . . . . . . . . . . . . . Parts Stripped . | . . . . . . . . . . . . . . Power Chain Reactions . | . . . . . . . . . . . . . . Alert | -11 -10 -9 -8 -7 -7 -6 -6 -6 -6 -5 -4 -4 -3 ------- Run | Yrd Mat Mat Mat Fac DSF Fac Was Fac DSF Fac Fac DSF Res Peak Influence 279 | . 95 82 153 74 51 31 40 14 24 279 136 110 151 Initial 136 | . . 39 34 69 51 26 10 14 9 12 136 95 61 Average 81 | . 58 55 90 69 51 26 25 14 15 132 136 97 91 Maximum Alert Level 1 | . . . . . . . . . . 1 . . . Low Security (%) 92 | 100 100 100 100 100 100 100 100 100 100 69 100 100 100 Level 1 7 | . . . . . . . . . . 30 . . . Level 2 . | . . . . . . . . . . . . . . Level 3 . | . . . . . . . . . . . . . . Level 4 . | . . . . . . . . . . . . . . Level 5 . | . . . . . . . . . . . . . . High Security . | . . . . . . . . . . . . . . Max Security . | . . . . . . . . . . . . . . Squads Dispatched 4 | . . . 2 . . . . . 1 . . . 1 Investigation 2 | . . . 1 . . . . . . . . . 1 Extermination . | . . . . . . . . . . . . . . Reinforcement 2 | . . . 1 . . . . . 1 . . . . Assault . | . . . . . . . . . . . . . . Garrison . | . . . . . . . . . . . . . . Intercept . | . . . . . . . . . . . . . . Searches Triggered . | . . . . . . . . . . . . . . Construction Impeded . | . . . . . . . . . . . . . . Haulers Reinforced . | . . . . . . . . . . . . . . Active Scanning Responses . | . . . . . . . . . . . . . . Cargo Convoy Interrupts . | . . . . . . . . . . . . . . Stealth | -11 -10 -9 -8 -7 -7 -6 -6 -6 -6 -5 -4 -4 -3 --------- Run | Yrd Mat Mat Mat Fac DSF Fac Was Fac DSF Fac Fac DSF Res Distress Signals 3 | . . 1 . . . . . . . 1 . . 1 Communications Jammed . | . . . . . . . . . . . . . . Distress Signals . | . . . . . . . . . . . . . . Times Spotted 56 | . 5 2 6 . 1 . 6 . 3 17 . 2 14 Peak Tracking Total 12 | . 4 2 8 . 1 . 6 . 2 7 . 2 12 Tactical Retreats 11 | . . . 1 . . . . . 1 5 . 1 3 Traps | -11 -10 -9 -8 -7 -7 -6 -6 -6 -6 -5 -4 -4 -3 ------- Run | Yrd Mat Mat Mat Fac DSF Fac Was Fac DSF Fac Fac DSF Res Traps Triggered 3 | . . . . . . 1 . . 1 . . . 1 Indirectly . | . . . . . . . . . . . . . . Trap Hack Attempts . | . . . . . . . . . . . . . . Triggered . | . . . . . . . . . . . . . . Disarmed . | . . . . . . . . . . . . . . Reprogrammed . | . . . . . . . . . . . . . . Reused . | . . . . . . . . . . . . . . Traps Extracted . | . . . . . . . . . . . . . . Installed . | . . . . . . . . . . . . . . Triggered . | . . . . . . . . . . . . . . Machines | -11 -10 -9 -8 -7 -7 -6 -6 -6 -6 -5 -4 -4 -3 ---------- Run | Yrd Mat Mat Mat Fac DSF Fac Was Fac DSF Fac Fac DSF Res Machines Disabled . | . . . . . . . . . . . . . . Max in Single Turn . | . . . . . . . . . . . . . . Machines Repaired . | . . . . . . . . . . . . . . Machines Dismantled . | . . . . . . . . . . . . . . Machines Sabotaged . | . . . . . . . . . . . . . . Overloaded Fab Kills . | . . . . . . . . . . . . . . Hacking | -11 -10 -9 -8 -7 -7 -6 -6 -6 -6 -5 -4 -4 -3 --------- Run | Yrd Mat Mat Mat Fac DSF Fac Was Fac DSF Fac Fac DSF Res Machines Accessed 18 | . 3 2 2 2 . 1 . 1 . 4 1 . 2 Terminals 14 | . 3 2 1 2 . . . 1 . 2 1 . 2 Fabricators 3 | . . . . . . 1 . . . 2 . . . Repair Stations . | . . . . . . . . . . . . . . Recycling Units 1 | . . . 1 . . . . . . . . . . Scanalyzers . | . . . . . . . . . . . . . . Garrison Access . | . . . . . . . . . . . . . . Total Hacks 38 | . 12 5 3 2 . 2 . 2 . 6 1 . 5 Successful 21 | . 7 4 2 1 . 2 . 1 . 3 1 . . Failed 17 | . 5 1 1 1 . . . 1 . 3 . . 5 Catastrophic 4 | . 1 . . 1 . . . . . 1 . . 1 Database Lockouts . | . . . . . . . . . . . . . . Manual 22 | . 9 4 3 . . 1 . . . 5 . . . Terminals 33 | . 12 5 2 2 . . . 2 . 4 1 . 5 Fabricators 4 | . . . . . . 2 . . . 2 . . . Repair Stations . | . . . . . . . . . . . . . . Recycling Units 1 | . . . 1 . . . . . . . . . . Scanalyzers . | . . . . . . . . . . . . . . Garrison Access . | . . . . . . . . . . . . . . Terminal Hacks 8 | . 3 1 . 1 . . . 1 . 1 1 . . Robot Analysis 2 | . . 1 . . . . . . . 1 . . . Open DSF 3 | . . . . 1 . . . 1 . . 1 . . Level Access Points 1 | . 1 . . . . . . . . . . . . Branch Access Points 1 | . 1 . . . . . . . . . . . . Zone Layout 1 | . 1 . . . . . . . . . . . . Fabricator Hacks 1 | . . . . . . 1 . . . . . . . Network Status 1 | . . . . . . 1 . . . . . . . Repair Station Hacks . | . . . . . . . . . . . . . . Recycling Unit Hacks . | . . . . . . . . . . . . . . Scanalyzer . | . . . . . . . . . . . . . . Garrison Access Hacks . | . . . . . . . . . . . . . . Unauthorized Hacks 12 | . 4 3 2 . . 1 . . . 2 . . . Terminals 9 | . 4 3 1 . . . . . . 1 . . . Assimilate 1 | . 1 . . . . . . . . . . . . Botnet 6 | . 2 2 1 . . . . . . 1 . . . Skim 2 | . 1 1 . . . . . . . . . . . Fabricators 2 | . . . . . . 1 . . . 1 . . . Haulers 2 | . . . . . . 1 . . . 1 . . . Repair Stations . | . . . . . . . . . . . . . . Recycling Units 1 | . . . 1 . . . . . . . . . . Tunnel 1 | . . . 1 . . . . . . . . . . Scanalyzers . | . . . . . . . . . . . . . . Garrison Access . | . . . . . . . . . . . . . . Data Cores Recovered . | . . . . . . . . . . . . . . Used . | . . . . . . . . . . . . . . Hacking Detections 13 | . 2 2 1 1 . 1 . . . 3 1 . 2 Full Trace Events 2 | . 1 . . . . . . . . . . . 1 Feedback Events . | . . . . . . . . . . . . . . Feedback Blocked . | . . . . . . . . . . . . . . Robot Schematics Acquired . | . . . . . . . . . . . . . . Robots Built . | . . . . . . . . . . . . . . Authchips . | . . . . . . . . . . . . . . Time . | . . . . . . . . . . . . . . Total Robot Build Rating . | . . . . . . . . . . . . . . Part Schematics Acquired . | . . . . . . . . . . . . . . Parts Built . | . . . . . . . . . . . . . . Authchips . | . . . . . . . . . . . . . . Time . | . . . . . . . . . . . . . . Total Part Build Rating . | . . . . . . . . . . . . . . Parts Repaired . | . . . . . . . . . . . . . . Time . | . . . . . . . . . . . . . . Parts Recycled . | . . . . . . . . . . . . . . Recycled Matter . | . . . . . . . . . . . . . . Retrieved Matter . | . . . . . . . . . . . . . . Retrieved Components . | . . . . . . . . . . . . . . Parts Scanalyzed . | . . . . . . . . . . . . . . Part Schematics Acquired . | . . . . . . . . . . . . . . Parts Damaged . | . . . . . . . . . . . . . . Bothacking | -11 -10 -9 -8 -7 -7 -6 -6 -6 -6 -5 -4 -4 -3 ------------ Run | Yrd Mat Mat Mat Fac DSF Fac Was Fac DSF Fac Fac DSF Res Used RIF Installer . | . . . . . . . . . . . . . . Robots Hacked . | . . . . . . . . . . . . . . Non-combat . | . . . . . . . . . . . . . . Combat . | . . . . . . . . . . . . . . Robot Hacks Applied . | . . . . . . . . . . . . . . Relay Couplers Released . | . . . . . . . . . . . . . . Fabnet Peak Effective % . | . . . . . . . . . . . . . . Robots Rewired . | . . . . . . . . . . . . . . Allies Hacked . | . . . . . . . . . . . . . . Hacks Repelled . | . . . . . . . . . . . . . . Allies | -11 -10 -9 -8 -7 -7 -6 -6 -6 -6 -5 -4 -4 -3 -------- Run | Yrd Mat Mat Mat Fac DSF Fac Was Fac DSF Fac Fac DSF Res Total Allies 1 | . . . . . . . 1 . . . . . . Largest Group 1 | . . . . . . . 1 . . . . . . Highest-Rated Group 31 | . . . . . . . 31 . . . . . . Highest-Rated Ally 31 | . . . . . . . 31 . . . . . . Total Orders . | . . . . . . . . . . . . . . Ally Attacks 4 | . . . . . . . 4 . . . . . . Total Damage 41 | . . . . . . . 41 . . . . . . Kills . | . . . . . . . . . . . . . . Allies Corrupted . | . . . . . . . . . . . . . . Allies Melted . | . . . . . . . . . . . . . . Intel | -11 -10 -9 -8 -7 -7 -6 -6 -6 -6 -5 -4 -4 -3 ------- Run | Yrd Mat Mat Mat Fac DSF Fac Was Fac DSF Fac Fac DSF Res Robot Analysis Total 2 | . . 1 . . . . . . . 1 . . . Derelict Logs Recovered . | . . . . . . . . . . . . . . Drone Launches . | . . . . . . . . . . . . . . Drone Recoveries . | . . . . . . . . . . . . . . Exploration | -11 -10 -9 -8 -7 -7 -6 -6 -6 -6 -5 -4 -4 -3 ------------- Run | Yrd Mat Mat Mat Fac DSF Fac Was Fac DSF Fac Fac DSF Res Turns Passed 930 | 10 69 104 75 20 39 61 33 6 44 229 2 29 209 Spaces Moved 1760 | 21 137 183 149 39 76 110 66 12 62 432 3 57 413 Core 1760 | 21 137 183 149 39 76 110 66 12 62 432 3 57 413 Treads . | . . . . . . . . . . . . . . Legs . | . . . . . . . . . . . . . . Wheels . | . . . . . . . . . . . . . . Hover . | . . . . . . . . . . . . . . Flight . | . . . . . . . . . . . . . . Fastest Speed 50 | 50 50 50 50 50 50 50 50 50 50 50 50 50 50 Average Speed 50 | 50 50 50 50 50 50 50 50 50 50 50 50 50 50 Slowest Speed 50 | 50 50 50 50 50 50 50 50 50 50 50 50 50 50 Overloaded Moves . | . . . . . . . . . . . . . . Propulsion Burnouts . | . . . . . . . . . . . . . . Robots Hopped . | . . . . . . . . . . . . . . Cave-ins Triggered . | . . . . . . . . . . . . . . Exploration Rate (%) 32 | 2 32 22 25 2 84 4 72 . 67 23 1 66 17 Regions Visited 13 Branch Regions . Pre-discovered Areas 1 | . . . 1 . . . . . . . . . . Known Exits Taken 4 | . 1 . . 1 . . . 1 . . 1 . . Unknown Exits Taken 4 | 1 . 1 1 . . . . . . 1 . . . Scrap Searched . | . . . . . . . . . . . . . . Spaces Dug . | . . . . . . . . . . . . . . Terrain Destroyed . | . . . . . . . . . . . . . . Melee . | . . . . . . . . . . . . . . Projectile . | . . . . . . . . . . . . . . AOE . | . . . . . . . . . . . . . . Terrain Rammed . | . . . . . . . . . . . . . . Walls Destroyed . | . . . . . . . . . . . . . . Machines Disabled . | . . . . . . . . . . . . . . Actions | -11 -10 -9 -8 -7 -7 -6 -6 -6 -6 -5 -4 -4 -3 --------- Run | Yrd Mat Mat Mat Fac DSF Fac Was Fac DSF Fac Fac DSF Res Total 1795 | 20 136 194 148 38 76 116 65 11 74 444 2 56 415 Wait 32 | . . 12 . . . 6 . . . 13 . . 1 Move 1748 | 20 136 182 148 38 75 110 65 11 61 431 2 56 413 Hop . | . . . . . . . . . . . . . . Pick Up . | . . . . . . . . . . . . . . Fast Attach . | . . . . . . . . . . . . . . Attach . | . . . . . . . . . . . . . . Detach . | . . . . . . . . . . . . . . Swap . | . . . . . . . . . . . . . . Drop . | . . . . . . . . . . . . . . Fire . | . . . . . . . . . . . . . . Melee . | . . . . . . . . . . . . . . Ram 1 | . . . . . . . . . . . . . 1 Kick . | . . . . . . . . . . . . . . Crush . | . . . . . . . . . . . . . . Escape Stasis 13 | . . . . . . . . . 13 . . . . Rewire 1 | . . . . . 1 . . . . . . . . Trap . | . . . . . . . . . . . . . . Miscellaneous . | . . . . . . . . . . . . . . Route ------- -11/Scrapyard -10/Materials (discovered 5 exits: *Mat x3 / Min x2) -9/Materials -8/Materials -7/Factory -7/DSF -6/Factory -6/Waste -6/Factory -6/DSF -5/Factory -4/Factory -4/DSF -3/Research (discovered 1 exit: [*Tes]) History --------- Turn | Location | Event 4 | -11/Scrapyard | Discovered new exit (range 13) 11 | -11/Scrapyard | Entered Materials 13 | -10/Materials | Identified exit to Mines 24 | -10/Materials | Identified exit to Materials 80 | -10/Materials | Entered another Materials area 80 | -9/Materials | Evolved 2 slots: Weapon x2 179 | -9/Materials | Discovered new exit (range 11) 184 | -9/Materials | Entered another Materials area 184 | -8/Materials | Evolved 2 slots: Weapon x2 251 | -8/Materials | Discovered new exit (range 15) 259 | -8/Materials | Entered Factory 259 | -7/Factory | Evolved 2 slots: Weapon x2 278 | -7/Factory | Identified exit to DSF 279 | -7/Factory | Entered DSF 300 | -7/DSF | Core integrity fell below 50% 300 | -7/DSF | Discovered new exit (range 16) 301 | -7/DSF | Additional patrols routed to DSF 305 | -7/DSF | Build established: Mutant 318 | -7/DSF | Entered Factory 318 | -6/Factory | Evolved 2 slots: Weapon x2 379 | -6/Factory | Sucked down chute 379 | -6/Factory | Entered Waste 380 | -6/Waste | Met a frightened Derelict 384 | -6/Waste | Spotted C-40 Crusher 384 | -6/Waste | Spotted C-40 Crusher 388 | -6/Waste | Spotted C-40 Crusher 390 | -6/Waste | Spotted C-40 Crusher 404 | -6/Waste | Spotted C-40 Crusher 405 | -6/Waste | Discovered new exit (range 15) 405 | -6/Waste | Spotted C-40 Crusher 412 | -6/Waste | Entered Factory 418 | -6/Factory | Identified exit to DSF 418 | -6/Factory | Entered DSF 435 | -6/DSF | Additional patrols routed to DSF 455 | -6/DSF | Discovered new exit (range 15) 462 | -6/DSF | Entered Factory 462 | -5/Factory | Evolved 2 slots: Weapon x2 604 | -5/Factory | Core integrity fell below 50% 689 | -5/Factory | Discovered new exit (range 6) 691 | -5/Factory | Entered another Factory area 691 | -4/Factory | Evolved 2 slots: Weapon x2 693 | -4/Factory | Identified exit to DSF 693 | -4/Factory | Entered DSF 714 | -4/DSF | Additional patrols routed to DSF 714 | -4/DSF | Discovered new exit (range 16) 722 | -4/DSF | Entered Research 722 | -3/Research | Evolved 2 slots: Weapon x2 894 | -3/Research | Core integrity fell below 50% 921 | -3/Research | Core integrity fell below 20% 925 | -3/Research | Discovered new exit (range 9) 931 | -3/Research | Destroyed by H-71 Marshal with Heavy Mass Driver Last Messages --------------- the floor. 00867_ G-67 Veteran emerges from a hatch in the floor. 00867_ S-43 Plague emerges from a hatch in the floor. 00887_ U-05 Engineer lays Concrete. 00891_ Connecting with Terminal... 00891_ ALERT: Suspicious activity at Terminal R012. Dispatching Investigation squad. 00893_ Slammed into S-43 Plague. 00893_ Critical hit (Burn: +37). 00895_ Penetrated by Slug. 00904_ Slug penetrates Wall. 00917_ Critical hit (Burn: +50). 00918_ Slug penetrates Wall. 00923_ ALERT: Cargo convoy en route, clear transfer corridor. 00925_ EXIT=FOUND 00929_ Knocked back. 00931_ Penetrated by Slug. Map ----- +----------------------------------------------------+ | # ??????? | | # ??????? | | # ??????? | | #+###########/###############+### # ??????? | | ??????? ???????# # #? ??????? | | ??? / ?????# # #???????????? | | ## ???# ] # #???????????? | | ## #??# + #???????????? | | ## #??# # #???????????? | | ## #??# # #???????????? | | ## #??# # #???????????? | | ## #??# # #???????????? | | #?? #??# # #???????????? | | #######??? ????########## #???????????? | | ??????????? ???????????????# #???????????? | | ??????????? ????????????????# #???????????? | | ????????????????????????????????# #???????????? | | ???????????????????############?# ##??????????? | | ???????????????????# # T#??????????? | | ???????????????????# ! / # #??????????? | | ???????????????????# + ##??????????? | | ???????????????????# ] # #???????????? | | ???????????????????# = # ###?????????? | | ???????????????????############?# T"#?????????? | | ???????????????####### #?#### ""#?????????? | | ?????????? A = /@ ###"## ###?????????? | | ?????????? %